bitfinex-derivatives/quotes_SOLF0:USTF0_20260127
["timestamp","ask_amount","ask_price","bid_price","bid_amount"]
[1769536526498,11.4619147,123.94,123.89,1.70437296]
[1769536527904,18.7319147,123.94,123.89,1.70437296]
[1769536530806,270.47141974,123.96,123.89,17.03029647]
[1769536531007,11.61141974,123.98,123.91,17.03029647]
[1769536531402,18.87941974,123.98,123.91,17.03029647]
[1769536531608,11.61141974,123.98,123.91,17.03029647]
[1769536532305,11.61141974,123.98,123.92,17.03029647]
[1769536532508,572.85576615,123.99,123.92,17.03029647]
[1769536532809,13.34452148,124.01,123.94,17.03029647]
[1769536533110,13.34452148,124.01,123.94,15.32592351]
[1769536534312,13.40103346,123.99,123.91,24.30149647]
[1769536534505,13.40103346,123.99,123.92,15.32592351]
[1769536535008,11.6966605,123.99,123.92,17.03029647]
[1769536535714,11.6966605,123.99,123.93,22.59632351]
[1769536536012,13.45613298,124.01,123.94,15.32592351]
[1769536536207,13.45613298,124.01,123.94,17.03029647]
[1769536536607,20.72193298,124.01,123.94,15.32592351]
[1769536537803,7.2664,124.0,123.94,15.32592351]
[1769536538007,13.53616595,123.99,123.93,7.2704]
[1769536538212,13.53616595,123.99,123.92,18.22644414]
[1769536538412,11.83179299,123.99,123.92,18.22644414]
[1769536538809,1.70437296,124.0,123.93,16.52207118]
[1769536539512,1.70437296,124.0,123.93,18.22644414]
[1769536539713,20.80246595,124.01,123.93,18.22644414]
[1769536539914,20.80246595,124.01,123.93,25.49684414]
[1769536540311,7.2664,124.0,123.93,25.49684414]
[1769536540508,11.87514355,123.99,123.93,16.52207118]
[1769536540713,13.57951651,123.98,123.91,25.49754414]
[1769536540911,20.84721651,123.98,123.91,25.49754414]
[1769536542218,20.84721651,123.98,123.92,16.52207118]
[1769536543118,7.2677,123.98,123.92,16.52207118]
[1769536545926,11.92483838,124.0,123.93,18.22644414]
[1769536546221,11.92483838,124.0,123.94,18.22644414]
[1769536546522,11.92483838,124.0,123.94,16.52207118]
[1769536546721,1.70437296,123.98,123.91,18.22644414]
[1769536546926,13.6771607,123.99,123.93,16.52207118]
[1769536547415,11.98831334,123.97,123.9,16.52207118]
[1769536547620,13.69189423,123.97,123.9,18.22565207]
[1769536547814,1.70358089,123.98,123.92,16.52207118]
[1769536548622,8.97118089,123.98,123.92,23.79307118]
[1769536549625,20.9908026,123.97,123.9,23.79377118]
[1769536549815,1.70358089,123.96,123.9,23.79377118]
[1769536550123,19.28722171,123.97,123.9,25.49735207]
[1769536550717,19.28722171,123.97,123.91,16.52207118]
[1769536551423,7.2683,123.97,123.92,16.52207118]
[1769536551623,13.75233723,123.99,123.92,16.52207118]
[1769536553022,7.2678,123.98,123.92,16.52207118]
[1769536554816,7.2682,123.97,123.92,16.52207118]
[1769536555020,1.70358089,123.96,123.9,16.78992043]
[1769536555622,12.11888243,123.97,123.91,16.78992043]
[1769536556125,19.38698243,123.97,123.91,24.06142043]
[1769536561930,19.38698243,123.97,123.91,16.78992043]
[1769536562529,7.2675,123.98,123.92,18.49350132]
[1769536562725,21.18487859,123.98,123.92,16.78992043]
[1769536563433,1.70358089,123.96,123.9,16.78992043]
[1769536563831,21.19875183,123.97,123.9,16.78992043]
[1769536564934,21.19875183,123.97,123.91,16.78992043]
[1769536566129,8.97118089,123.98,123.91,18.49350132]
[1769536566538,8.97118089,123.98,123.93,16.78992043]
[1769536566737,7.2676,123.98,123.93,16.78992043]
[1769536567933,8.97118089,123.98,123.93,16.78992043]
[1769536568645,1.70358089,123.96,123.91,16.78992043]
[1769536568846,13.99236252,123.99,123.91,18.49350132]
[1769536569347,13.99236252,123.99,123.93,16.78992043]
[1769536570646,7.2676,123.98,123.93,16.78992043]
[1769536570840,8.97118089,123.98,123.93,16.78992043]
[1769536572945,8.97118089,123.98,123.91,16.78992043]
[1769536572946,1.70358089,123.97,123.91,16.78992043]
[1769536574051,8.97178089,123.97,123.91,16.78992043]
[1769536578150,7.2682,123.97,123.91,16.78992043]
[1769536578645,7.2688,123.96,123.91,16.78992043]
[1769536580049,12.424417,124.0,123.91,16.78992043]
[1769536580255,19.692017,123.98,123.92,16.78992043]
[1769536580456,1.70358089,123.97,123.92,16.78992043]
[1769536580649,14.12799789,123.98,123.92,16.78992043]
[1769536581856,7.2683,123.97,123.92,16.78992043]
[1769536582449,8.97118089,123.98,123.93,16.78992043]
[1769536582652,1.70358089,123.98,123.93,16.78992043]
[1769536583860,113.0173,124.02,123.94,15.95665335]
[1769536583861,1.70358089,124.01,123.94,15.95665335]
[1769536584156,1.70358089,124.01,123.94,17.66023424]
[1769536584856,14.19617691,124.01,123.94,17.66023424]
[1769536585061,21.46247691,124.01,123.95,7.2692]
[1769536585760,21.46247691,124.01,123.95,23.80811516]
[1769536586660,8.97008089,124.0,123.95,16.53891516]
[1769536587850,264.74,124.03,123.94,7.2698]
[1769536587851,278.97420884,124.03,123.96,16.53891516]
[1769536588457,14.23420884,124.03,123.96,16.53891516]
[1769536588761,12.53062795,124.07,124.0,16.53891516]
[1769536589057,14.2433021,124.06,124.0,16.53891516]
[1769536589360,1.70358089,124.03,123.98,16.53891516]
[1769536589762,1.70358089,124.02,123.98,16.53891516]
[1769536590154,1.70358089,124.03,123.98,16.53891516]
[1769536590352,21.51790053,124.02,123.96,16.53891516]
[1769536590663,1.70358089,124.01,123.96,16.53891516]
[1769536591362,19.81431964,124.02,123.96,23.80761516]
[1769536591363,1.70358089,124.02,123.96,23.80761516]
[1769536591557,1.70358089,124.02,123.97,16.53891516]
[1769536596961,14.3137002,124.01,123.95,16.53891516]
[1769536597163,14.3137002,123.99,123.93,261.53891516]
[1769536600868,12.61011931,123.99,123.93,268.80931516]
[1769536601070,14.3137002,123.99,123.93,268.80931516]
[1769536602165,1.70358089,123.98,123.93,268.80931516]
[1769536602966,1.70358089,123.98,123.94,16.53891516]
[1769536604568,8.96998089,124.0,123.94,16.53891516]
[1769536607665,8.96917193,124.0,123.94,16.53891516]
[1769536608869,7.267,123.99,123.94,16.53891516]
[1769536611472,7.2661,124.01,123.96,16.53891516]
[1769536613173,7.2653,124.02,123.96,16.53891516]
[1769536613873,7.2653,124.02,123.96,18.24168709]
[1769536615667,7.2653,124.02,123.96,16.53891516]
[1769536615871,7.2659,124.01,123.96,16.53891516]
[1769536617073,7.2652,124.02,123.96,16.53891516]
[1769536617775,19.52585014,124.02,123.96,16.53891516]
[1769536618073,1.70277193,124.03,123.96,16.53891516]
[1769536618074,13.96342207,124.01,123.96,16.53891516]
[1769536618666,21.22922207,124.01,123.96,16.53891516]
[1769536620775,21.22922207,124.01,123.94,7.2699]
[1769536620776,7.2664,124.0,123.94,15.74258127]
[1769536620975,21.18241654,124.0,123.94,15.74258127]
[1769536621762,12.21324461,123.99,123.94,15.74258127]
[1769536622168,1.70277193,123.98,123.94,15.74258127]
[1769536623282,19.44926527,124.0,123.94,23.01238127]
[1769536623473,13.8856372,123.99,123.94,7.2698]
[1769536623673,1.70277193,123.97,123.92,15.74258127]
[1769536624970,1.70277193,123.97,123.92,23.01358127]
[1769536625174,1.70277193,123.97,123.92,15.74258127]
[1769536625673,7.2669,124.0,123.92,15.74258127]
[1769536625973,21.10820317,124.0,123.92,15.74258127]
[1769536626375,19.40563124,123.99,123.92,23.01338127]
[1769536626771,19.40563124,123.99,123.93,15.74258127]
[1769536627770,7.2671,123.99,123.93,15.74258127]
[1769536628377,7.2671,123.99,123.94,15.74258127]
[1769536629581,12.09544904,124.02,123.95,17.4453532]
[1769536630471,1.70277193,124.03,123.96,15.74258127]
[1769536630671,13.78433217,124.04,123.96,15.74258127]
[1769536630867,7.2644,124.04,123.97,1.70277193]
[1769536631072,7.2644,124.04,123.98,15.74258127]
[1769536632079,1.70277193,124.05,123.98,15.74258127]
[1769536633078,1.70277193,124.05,123.99,15.74258127]
[1769536633274,13.7430527,124.04,123.97,17.4453532]
[1769536633479,13.7430527,124.04,123.97,23.01068127]
[1769536634177,21.0071527,124.04,123.98,15.74258127]
[1769536635283,21.0071527,124.04,123.98,23.00988127]
[1769536638185,19.23936691,124.03,123.96,23.01078127]
[1769536638387,19.23936691,124.03,123.97,15.74258127]
[1769536639877,19.23936691,124.03,123.97,23.01068127]
[1769536640077,1.70277193,124.04,123.98,15.74258127]
[1769536640277,19.21342997,124.05,123.98,17.4453532]
[1769536640981,19.21342997,124.05,123.98,24.7128532]
[1769536641181,8.96677193,124.05,123.99,15.74258127]
[1769536641379,1.70277193,124.06,124.0,23.00878127]
[1769536641580,112.9239,124.12,124.0,23.00878127]
[1769536641581,320.36096036,124.09,124.01,15.74258127]
[1769536641886,320.36096036,124.09,124.03,15.74258127]
[1769536643083,11.89167576,124.08,124.03,15.74258127]
[1769536643279,11.89167576,124.08,124.01,23.41756992]
[1769536643280,11.89167576,124.07,124.01,23.41756992]
[1769536644193,7.2629,124.06,124.01,16.15176992]
[1769536644894,19.15397576,124.07,124.01,16.15176992]
[1769536645089,20.85674769,124.07,124.01,16.15176992]
[1769536646993,7.263,124.06,124.01,16.15176992]
[1769536647198,13.54687997,124.05,123.99,16.75982912]
[1769536647396,11.84410804,124.07,123.99,18.46260105]
[1769536647592,13.54687997,124.07,123.99,18.46260105]
[1769536648993,19.08464265,124.06,123.99,25.72940105]
[1769536649303,11.82174265,124.05,123.99,24.02662912]
[1769536649892,19.08534265,124.05,123.99,24.02662912]
[1769536650299,11.81074263,124.04,123.97,18.46260105]
[1769536650498,13.51351456,124.04,123.97,16.75982912]
[1769536650799,20.77771456,124.04,123.97,24.02792912]
[1769536651395,7.2652,124.03,123.97,16.75982912]
[1769536651698,19.06508351,124.03,123.97,16.75982912]
[1769536656895,112.9818,124.06,123.98,18.46260105]
[1769536656896,7.264,124.05,123.98,18.46260105]
[1769536657900,7.264,124.05,123.99,24.02672912]
[1769536662808,7.264,124.05,123.99,25.72950105]
[1769536663009,7.264,124.05,123.99,18.46260105]
[1769536665413,7.264,124.05,124.0,16.75982912]
[1769536665807,7.2641,124.04,124.0,16.75982912]
[1769536667209,7.2647,124.03,124.0,16.75982912]
[1769536667409,7.2647,124.03,123.98,16.75982912]
[1769536668806,13.21763784,124.05,123.98,16.75982912]
[1769536669409,7.2641,124.04,123.98,16.75982912]
[1769536669607,8.9658678,124.04,123.98,16.75982912]
[1769536673319,20.48013371,124.05,123.98,16.75982912]
[1769536673616,11.37444543,124.04,123.98,16.75982912]
[1769536673810,11.37444543,124.04,123.98,24.02732912]
[1769536675020,13.07621323,124.04,123.98,24.02732912]
[1769536676121,11.37444543,124.04,123.98,24.02732912]
[1769536676919,11.37444543,124.04,123.99,16.7180966]
[1769536677221,20.22270525,124.07,124.01,16.7180966]
[1769536680016,7.263,124.06,124.01,16.7180966]
[1769536681824,18.41764684,124.06,124.01,16.7180966]
[1769536682025,20.11981464,124.05,123.99,16.7180966]
[1769536682224,8.9651678,124.05,123.99,16.7180966]
[1769536683130,1.7017678,124.05,123.99,16.7180966]
[1769536684029,1.7017678,124.05,124.0,16.7180966]
[1769536685826,8.9652678,124.05,124.0,16.7180966]
[1769536688734,7.2646,124.03,123.98,16.7180966]
[1769536689423,1.7017678,124.04,123.98,25.6870644]
[1769536689629,7.2637,124.05,123.98,18.4198644]
[1769536690830,7.2629,124.06,124.0,18.4198644]
[1769536691835,281.18510611,124.08,124.01,16.7180966]
[1769536692028,12.70290611,124.08,124.01,16.7180966]
[1769536692228,12.66675806,124.1,124.03,16.7180966]
[1769536692535,7.2612,124.09,124.05,16.7180966]
[1769536695536,7.2605,124.1,124.05,16.7180966]
[1769536697243,8.9616678,124.11,124.05,16.7180966]
[1769536697532,112.914,124.14,124.06,16.7180966]
[1769536697533,10.87732537,124.14,124.06,16.7180966]
[1769536697744,1.7017678,124.12,124.06,16.7180966]
[1769536697942,382.0394,124.15,124.06,16.7180966]
[1769536697943,1.7017678,124.1,124.06,16.7180966]
[1769536698343,10.86033821,124.11,124.06,16.7180966]
[1769536698344,12.56210601,124.11,124.06,16.7180966]
[1769536698950,19.82260601,124.11,124.06,16.7180966]
[1769536702054,7.2606,124.1,124.06,16.7180966]
[1769536704154,7.2606,124.1,124.03,15.4375348]
[1769536704155,1.7017678,124.09,124.03,15.4375348]
[1769536704354,1.7017678,124.08,124.03,15.4375348]
[1769536704556,1.7017678,124.07,124.03,15.4375348]
[1769536704854,1.7017678,124.07,124.01,16.62715258]
[1769536704855,1.7017678,124.06,124.01,16.62715258]
[1769536705763,7.2635,124.05,124.01,16.62715258]
[1769536706456,7.2635,124.05,123.99,300.86715258]
[1769536706960,1.7017678,124.03,123.97,232.73449509]
[1769536707259,1.7017678,124.02,123.97,16.62715258]
[1769536707952,8.9669678,124.02,123.97,16.62715258]
[1769536708654,7.2652,124.02,123.97,16.62715258]
[1769536708859,8.9678678,124.01,123.97,16.62715258]
[1769536711759,7.2651,124.03,123.97,16.62715258]
[1769536712556,1.7017678,124.02,123.97,16.62715258]
[1769536714663,19.59614296,124.03,123.97,16.62715258]
[1769536721968,7.2654,124.02,123.97,16.62715258]
[1769536724267,112.9721,124.07,123.97,16.62715258]
[1769536724468,1.7017678,124.06,123.99,16.62715258]
[1769536724665,17.98308379,124.06,123.99,16.62715258]
[1769536725969,7.2634,124.05,123.99,16.62715258]
[1769536727865,7.2634,124.05,124.0,16.62715258]
[1769536728874,1.7017678,124.06,124.0,16.62715258]
[1769536729367,17.98308379,124.06,124.0,16.62715258]
[1769536729575,17.98244658,124.06,124.0,16.62715258]
[1769536729778,17.98244658,124.05,124.0,16.62715258]
[1769536730169,16.28131599,124.05,124.0,16.62715258]
[1769536730570,8.96453059,124.06,124.01,16.62715258]
[1769536731770,8.96453059,124.06,123.99,23.89405258]
[1769536731771,23.54471599,124.05,123.99,23.89405258]
[1769536731979,23.54471599,124.05,124.0,16.62715258]
[1769536732578,16.28131599,124.05,124.0,23.89345258]
[1769536736478,7.2629,124.06,124.01,15.75979241]
[1769536737087,7.2623,124.07,124.01,15.75979241]
[1769536737286,7.2623,124.07,124.03,15.75979241]
[1769536740386,7.2617,124.08,124.03,17.460923]
[1769536740987,15.12946539,124.09,124.03,17.460923]
[1769536742386,15.12946539,124.09,124.03,15.75979241]
[1769536743088,7.2609,124.1,124.03,7.2645]
[1769536743289,8.96203059,124.1,124.04,15.75979241]
[1769536744087,24.09149598,124.1,124.04,15.75979241]
[1769536744292,22.39036539,124.1,124.04,15.75979241]
[1769536744589,1.70113059,124.11,123.99,123.1003523]
[1769536744590,324.63000007,124.13,124.05,17.460923]
[1769536745391,16.83059598,124.12,124.05,17.460923]
[1769536746090,24.08999598,124.12,124.05,24.724223]
[1769536746591,15.12946539,124.11,124.05,24.724223]
[1769536746788,1.70113059,124.09,124.05,15.75979241]
[1769536749688,1.70113059,124.07,124.03,23.02439241]
[1769536750086,1.70113059,124.07,124.03,15.75979241]
[1769536750992,1.70113059,124.06,124.03,15.75979241]
[1769536751492,1.70113059,124.07,124.03,15.75979241]
[1769536752192,8.96283059,124.08,124.03,15.75979241]
[1769536754096,1.70113059,124.07,124.03,15.75979241]
[1769536754396,16.83059598,124.08,124.03,15.75979241]
[1769536755994,24.09249598,124.08,124.03,15.75979241]
[1769536760488,22.39136539,124.08,124.03,15.75979241]
[1769536763500,24.09249598,124.08,124.03,15.75979241]
[1769536766706,22.39136539,124.08,124.03,15.75979241]
[1769536770011,22.39136539,124.08,124.03,23.02429241]
[1769536775812,24.09249598,124.08,124.03,23.02429241]
[1769536787523,22.39136539,124.08,124.03,23.02429241]
[1769536788022,112.9284,124.12,124.01,1.70113059]
[1769536788023,17.1275123,124.06,124.01,15.07975121]
[1769536788321,15.42638171,124.06,124.01,15.07975121]
[1769536789026,22.68928171,124.06,124.01,22.34545121]
[1769536790524,15.42638171,124.06,124.01,22.34545121]
[1769536797136,15.42638171,124.06,124.02,15.34607156]
[1769536799537,7.2624,124.07,124.02,15.34607156]
[1769536799739,14.82859272,124.08,124.03,22.61057156]
[1769536800437,14.82859272,124.07,124.02,7.2652]
[1769536801533,14.82859272,124.07,124.02,22.61127156]
[1769536802138,14.82859272,124.06,124.0,17.04674111]
[1769536802339,14.82859272,124.06,124.0,15.34607156]
[1769536802535,14.82859272,124.05,124.0,7.2663]
[1769536802739,16.52926227,124.04,123.98,25.40822386]
[1769536802936,16.52926227,124.04,123.98,15.34607156]
[1769536803940,16.52926227,124.02,123.96,15.34607156]
[1769536804142,16.52926227,124.01,123.94,130.12764111]
[1769536804438,16.52926227,124.01,123.96,22.61477156]
[1769536804638,14.82859272,124.03,123.97,15.34607156]
[1769536804839,14.82859272,124.03,123.98,17.04674111]
[1769536805238,14.82859272,124.05,124.0,24.31284111]
[1769536805445,14.82859272,124.07,124.01,15.34607156]
[1769536805940,14.82859272,124.06,124.0,8.96676955]
[1769536806449,14.82859272,124.06,124.0,1.70066955]
[1769536807044,14.82859272,124.06,124.0,17.04674111]
[1769536807245,16.52926227,124.05,123.98,15.34607156]
[1769536808136,14.82859272,124.05,124.0,15.34607156]
[1769536809345,16.52926227,124.05,123.98,15.34607156]
[1769536810942,22.09269272,124.04,123.98,15.34607156]
[1769536811349,14.82859272,124.06,124.0,15.34607156]
[1769536811546,1.70066955,124.07,124.01,17.04674111]
[1769536811845,16.52926227,124.05,123.99,15.34607156]
[1769536812046,23.79266227,124.05,123.99,15.34607156]
[1769536812244,16.52926227,124.03,123.95,15.34607156]
[1769536812441,16.52926227,124.01,123.95,15.34607156]
[1769536813945,16.52926227,124.01,123.95,22.61537156]
[1769536814150,16.52926227,124.01,123.95,15.34607156]
[1769536814552,23.79506227,124.01,123.95,22.61537156]
[1769536814939,14.82859272,124.0,123.95,15.34607156]
[1769536815344,16.52926227,123.99,123.93,15.34607156]
[1769536816456,14.82859272,123.98,123.91,302.20607156]
[1769536817049,14.82859272,123.98,123.92,22.61707156]
[1769536817354,8.96776955,123.99,123.93,15.34607156]
[1769536817355,16.52926227,123.99,123.93,15.34607156]
[1769536818949,16.52926227,123.99,123.93,22.61637156]
[1769536819458,23.79626227,123.99,123.93,22.61637156]
[1769536819954,14.82859272,123.98,123.93,22.61637156]
[1769536822151,22.09609272,123.98,123.93,15.34607156]
[1769536822453,14.82859272,123.98,123.91,7.2712]
[1769536822657,14.82859272,123.98,123.91,22.61727156]
[1769536822850,7.2675,123.99,123.93,7.2704]
[1769536823047,16.40445022,124.01,123.94,16.97985716]
[1769536823655,14.70378067,124.03,123.97,15.27918761]
[1769536824959,14.70378067,124.03,123.97,22.54698761]
[1769536825959,21.96838067,124.03,123.97,22.54698761]
[1769536826653,16.38062202,124.05,123.98,15.89208865]
[1769536826859,16.38062202,124.04,123.98,15.89208865]
[1769536827060,16.38062202,124.04,123.97,24.8605582]
[1769536828061,23.64472202,124.04,123.97,24.8605582]
[1769536828262,23.64472202,124.04,123.98,15.89208865]
[1769536829255,14.67995247,124.03,123.98,15.89208865]
[1769536829763,23.64522202,124.03,123.96,17.5927582]
[1769536830066,14.67995247,124.03,123.97,17.5927582]
[1769536830956,14.67995247,124.03,123.97,24.8608582]
[1769536831567,21.94455247,124.03,123.97,24.8608582]
[1769536832071,21.94455247,124.03,123.97,23.16018865]
[1769536832265,21.94455247,124.03,123.98,15.89208865]
[1769536832868,21.94455247,124.03,123.97,23.16018865]
[1769536834870,16.38062202,123.99,123.93,17.5927582]
[1769536835168,14.67995247,123.99,123.93,17.5927582]
[1769536835963,14.67995247,123.99,123.93,24.8626582]
[1769536836464,14.67995247,123.99,123.94,15.89208865]
[1769536836964,14.67995247,123.99,123.93,7.2699]
[1769536837158,16.38062202,123.98,123.93,7.2699]
[1769536837362,16.38062202,123.98,123.9,17.5927582]
[1769536837766,16.38062202,123.95,123.88,15.89208865]
[1769536838771,113.0542,123.98,123.87,282.02066955]
[1769536838772,14.67995247,123.97,123.9,15.89208865]
[1769536838972,16.38062202,123.97,123.9,15.89208865]
[1769536839668,262.88,123.98,123.9,15.89208865]
[1769536839669,16.38062202,123.96,123.9,15.89208865]
[1769536839859,23.64932202,123.96,123.9,15.89208865]
[1769536840775,21.94925247,123.95,123.89,7.2726]
[1769536841366,21.94925247,123.95,123.88,24.8661582]
[1769536841859,16.38062202,123.94,123.88,7.2734]
[1769536842064,14.67995247,123.93,123.87,7.274]
[1769536842369,14.67995247,123.93,123.87,23.16608865]
[1769536842968,1.70066955,123.92,123.87,15.89208865]
[1769536843775,16.38062202,123.92,123.85,15.89208865]
[1769536843976,23.65192202,123.92,123.85,23.16718865]
[1769536844175,16.38062202,123.9,123.83,15.89208865]
[1769536844675,376.6119,123.92,123.83,15.89208865]
[1769536844676,8.97436955,123.88,123.83,15.89208865]
[1769536844868,23.65432202,123.88,123.81,17.5927582]
[1769536845477,21.95415247,123.87,123.81,15.89208865]
[1769536846978,16.38062202,123.89,123.82,15.89208865]
[1769536847876,23.65352202,123.89,123.82,23.16888865]
[1769536848068,279.80062202,123.91,123.83,17.5927582]
[1769536848878,287.07282202,123.91,123.84,7.2756]
[1769536849070,287.07282202,123.91,123.83,17.5927582]
[1769536849682,21.95225247,123.9,123.83,24.8690582]
[1769536850179,16.38062202,123.89,123.83,23.16838865]
[1769536850583,14.67995247,123.88,123.81,24.8698582]
[1769536853682,21.95395247,123.87,123.81,15.89208865]
[1769536853879,1.70637566,123.88,123.82,15.89208865]
[1769536854275,15.6472198,123.88,123.8,15.58703638]
[1769536854478,15.6472198,123.88,123.81,22.86423638]
[1769536855077,22.9206198,123.88,123.82,22.86383638]
[1769536855282,22.9206198,123.88,123.82,15.58703638]
[1769536856081,22.9198198,123.9,123.83,15.58703638]
[1769536856680,15.6472198,123.9,123.83,15.58703638]
[1769536857981,7.2729,123.89,123.83,22.86333638]
[1769536860390,15.6472198,123.9,123.84,17.29341204]
[1769536860684,440.32293562,123.95,123.87,15.58703638]
[1769536860685,595.99343108,123.95,123.87,15.58703638]
[1769536860886,7.2699,123.94,123.87,22.86083638]
[1769536861281,15.6472198,123.97,123.89,15.58703638]
[1769536861482,15.6472198,123.97,123.91,22.85863638]
[1769536861688,15.6472198,124.01,123.94,1.70637566]
[1769536861985,15.6472198,124.01,123.93,15.58703638]
[1769536861986,7.267,123.99,123.93,15.58703638]
[1769536862178,22.9142198,123.99,123.93,15.58703638]
[1769536864395,7.2661,124.01,123.94,15.58703638]
[1769536864586,15.6472198,124.06,123.94,15.58703638]
[1769536864886,6.71918774,124.05,123.97,15.58703638]
[1769536865085,6.71918774,124.05,123.98,22.85443638]
[1769536865387,22.9102198,124.06,123.98,22.85443638]
[1769536865978,266.42,124.08,123.99,15.58703638]
[1769536866184,128.5883198,124.11,124.0,15.58703638]
[1769536866391,15.6472198,124.11,124.02,15.58703638]
[1769536866590,22.9057198,124.14,124.04,15.58703638]
[1769536866992,15.6472198,124.13,124.05,15.58703638]
[1769536868193,15.6472198,124.13,124.02,113.0139]
[1769536868194,267.82257542,124.15,124.06,15.58703638]
[1769536868397,15.6472198,124.16,124.07,15.58703638]
[1769536869297,15.6472198,124.14,124.04,19.93130868]
[1769536869492,15.6472198,124.14,124.05,15.58703638]
[1769536870098,15.6472198,124.13,124.05,15.58703638]
[1769536870695,22.9065198,124.13,124.05,15.58703638]
[1769536871095,15.6472198,124.13,124.05,15.58703638]
[1769536871898,22.9060198,124.13,124.05,15.58703638]
[1769536872899,22.9069198,124.12,124.05,15.58703638]
[1769536874701,15.6472198,124.12,124.05,15.58703638]
[1769536874897,128.5468198,124.15,124.05,15.58703638]
[1769536875902,7.259,124.13,124.05,15.58703638]
[1769536876514,1.40237759,124.17,124.08,15.58703638]
[1769536876805,128.5396198,124.16,124.08,15.58703638]
[1769536877203,128.5622198,124.13,124.04,4.3442723]
[1769536878007,7.2595,124.12,124.04,4.3442723]
[1769536878406,15.6472198,124.16,124.04,4.3442723]
[1769536878810,15.6472198,124.16,124.05,112.9872]
[1769536879212,15.6472198,124.16,124.06,15.58703638]
[1769536879909,22.9044198,124.16,124.06,22.84963638]
[1769536880211,22.9044198,124.16,124.07,15.58703638]
[1769536880212,15.6472198,124.16,124.07,15.58703638]
[1769536880412,15.6472198,124.15,124.07,15.58703638]
[1769536881216,7.2585,124.14,124.07,15.58703638]
[1769536881612,7.2589,124.13,124.07,15.58703638]
[1769536881914,129.93049739,124.17,124.07,15.58703638]
[1769536882114,15.6472198,124.16,124.07,15.58703638]
[1769536882613,15.6472198,124.16,124.05,112.9832]
[1769536882614,15.6472198,124.16,124.09,15.58703638]
[1769536882811,127.3820855,124.21,124.11,14.67770399]
[1769536883116,7.256,124.18,124.11,14.67770399]
[1769536883305,127.3984855,124.19,124.11,14.67770399]
[1769536883510,7.2584,124.14,124.08,14.67770399]
[1769536884014,127.4100855,124.18,124.08,14.67770399]
[1769536884316,7.2572,124.16,124.09,15.8856726]
[1769536884517,14.5359855,124.18,124.09,15.8856726]
[1769536885510,7.2566,124.17,124.09,15.8856726]
[1769536885708,15.49893934,124.16,124.06,15.8856726]
[1769536885910,15.49893934,124.16,124.07,15.8856726]
[1769536886310,15.49893934,124.16,124.08,15.8856726]
[1769536886826,7.2583,124.14,124.08,15.8856726]
[1769536887040,15.49893934,124.15,124.08,15.8856726]
[1769536887517,22.75683934,124.15,124.08,15.8856726]
[1769536888019,7.2579,124.15,124.08,15.8856726]
[1769536888607,7.2579,124.15,124.09,15.8856726]
[1769536890216,22.75713934,124.14,124.07,15.8856726]
[1769536891211,7.2588,124.13,124.07,15.8856726]
[1769536892020,7.2594,124.12,124.05,15.8856726]
[1769536892812,7.2594,124.12,124.02,15.8856726]
[1769536892813,7.2605,124.1,124.02,15.8856726]
[1769536894116,7.2605,124.1,124.03,15.8856726]
[1769536895018,15.49893934,124.15,124.05,15.8856726]
[1769536895513,7.2588,124.13,124.06,7.2627]
[1769536895715,15.49893934,124.14,124.07,15.8856726]
[1769536896821,7.2596,124.12,124.07,15.8856726]
[1769536897016,15.49893934,124.14,124.07,15.8856726]
[1769536897221,15.49893934,124.11,124.03,23.1496726]
[1769536898320,15.49893934,124.11,124.04,15.8856726]
[1769536898921,7.2605,124.1,124.04,15.8856726]
[1769536900324,7.2612,124.09,124.01,15.8856726]
[1769536900726,7.2617,124.08,124.01,23.1513726]
[1769536900921,7.2617,124.08,124.01,15.8856726]
[1769536901120,15.49893934,124.1,124.01,15.8856726]
[1769536901921,7.2619,124.09,124.02,7.2658]
[1769536902424,7.2619,124.09,123.98,7.2677]
[1769536902425,7.2644,124.05,123.98,7.2677]
[1769536902723,7.2644,124.05,123.98,23.1533726]
[1769536902925,19.84321164,124.07,123.99,15.8856726]
[1769536903323,15.49893934,124.07,123.99,15.8856726]
[1769536904036,22.76243934,124.07,124.0,23.1526726]
[1769536905824,22.76243934,124.07,123.97,113.0666]
[1769536905825,15.49893934,124.06,123.98,15.8856726]
[1769536906426,22.76113934,124.09,124.0,23.1525726]
[1769536906626,6.46893873,124.08,124.0,23.1525726]
[1769536907028,21.96787807,124.08,124.0,23.1525726]
[1769536907232,15.49893934,124.08,124.0,23.1525726]
[1769536907826,15.49893934,124.05,123.99,7.2676]
[1769536909832,22.76313934,124.05,123.98,23.1538726]
[1769536910029,22.76313934,124.05,123.96,302.6056726]
[1769536910030,15.49893934,124.05,123.96,302.6056726]
[1769536910432,15.49893934,124.04,123.96,302.6056726]
[1769536911541,15.49893934,124.03,123.96,286.72]
[1769536911737,15.49893934,124.03,123.95,23.1551726]
[1769536913039,22.76493934,124.02,123.95,23.1551726]
[1769536915339,28.05846977,124.04,123.96,15.81610116]
[1769536915635,20.79336977,124.04,123.96,15.81610116]
[1769536916132,23.71550211,124.03,123.96,15.81610116]